[Event "*** Titled Tuesday Blitz"]
[Site "Chess.com"]
[Date "2020.04.07"]
[Round "6"]
[White "EugeneRougon"]
[Black "Schandenfreude"]
[Result "1-0"]
[WhiteElo "2714"]
[BlackElo "2513"]
[TimeControl "180+1"]
[EndTime "14:08:11 PDT"]
[Termination "EugeneRougon won on time"]

1. e4 {[%clk 0:03:00.9]} 1... e6 {[%clk 0:03:00]} 2. d4 {[%clk 0:02:57.9]} 2...
d5 {[%clk 0:03:00]} 3. Nd2 {[%clk 0:02:58.2]} 3... dxe4 {[%clk 0:03:00.1]} 4.
Nxe4 {[%clk 0:02:59.1]} 4... Nd7 {[%clk 0:02:58.1]} 5. Nf3 {[%clk 0:02:59.2]}
5... Ngf6 {[%clk 0:02:57.5]} 6. Nxf6+ {[%clk 0:02:59.4]} 6... Nxf6 {[%clk
0:02:57.1]} 7. g3 {[%clk 0:02:59.8]} 7... Be7 {[%clk 0:02:43.9]} 8. Bg2 {[%clk
0:02:59.9]} 8... O-O {[%clk 0:02:43.5]} 9. O-O {[%clk 0:03:00]} 9... Rb8 {[%clk
0:02:43.4]} 10. c4 {[%clk 0:02:58.1]} 10... b6 {[%clk 0:02:41.9]} 11. Ne5 {[%clk
0:02:58]} 11... Bb7 {[%clk 0:02:41.7]} 12. Nc6 {[%clk 0:02:54.8]} 12... Bxc6
{[%clk 0:02:41.3]} 13. Bxc6 {[%clk 0:02:55.7]} 13... Qd6 {[%clk 0:02:39.8]} 14.
Bg2 {[%clk 0:02:49.6]} 14... Rbd8 {[%clk 0:02:39.1]} 15. Be3 {[%clk 0:02:50]}
15... c5 {[%clk 0:02:24.9]} 16. dxc5 {[%clk 0:02:45.2]} 16... Qe5 {[%clk
0:02:18.4]} 17. Qc2 {[%clk 0:02:25]} 17... Bxc5 {[%clk 0:02:15.2]} 18. Bxc5
{[%clk 0:02:02.3]} 18... Qxc5 {[%clk 0:02:06.3]} 19. Rfd1 {[%clk 0:01:51.6]}
19... h5 {[%clk 0:02:05.5]} 20. Qe2 {[%clk 0:01:36.7]} 20... g6 {[%clk
0:01:56.9]} 21. b3 {[%clk 0:01:24.8]} 21... Kg7 {[%clk 0:01:55.5]} 22. Bf3
{[%clk 0:01:20.4]} 22... a5 {[%clk 0:01:52.8]} 23. Qe3 {[%clk 0:01:16.3]} 23...
Qxe3 {[%clk 0:01:38.1]} 24. fxe3 {[%clk 0:01:17.2]} 24... Nd7 {[%clk 0:01:38.3]}
25. Rd4 {[%clk 0:00:56.1]} 25... Ne5 {[%clk 0:01:35]} 26. Kf2 {[%clk 0:00:44.8]}
26... Nxf3 {[%clk 0:01:26.4]} 27. Kxf3 {[%clk 0:00:44.5]} 27... e5 {[%clk
0:01:26.3]} 28. Rd5 {[%clk 0:00:33]} 28... Rxd5 {[%clk 0:01:21.4]} 29. cxd5
{[%clk 0:00:33.9]} 29... Rc8 {[%clk 0:01:17.2]} 30. Rd1 {[%clk 0:00:33.2]} 30...
Kf6 {[%clk 0:00:55.9]} 31. Ke4 {[%clk 0:00:31.5]} 31... Rc2 {[%clk 0:00:26.2]}
32. d6 {[%clk 0:00:28.9]} 32... Rc8 {[%clk 0:00:25.8]} 33. d7 {[%clk 0:00:22.9]}
33... Rd8 {[%clk 0:00:25.7]} 34. Rd6+ {[%clk 0:00:22.4]} 34... Ke7 {[%clk
0:00:25.9]} 35. Kxe5 {[%clk 0:00:21.7]} 35... Rxd7 {[%clk 0:00:25.8]} 36. Rxd7+
{[%clk 0:00:21.7]} 36... Kxd7 {[%clk 0:00:25.8]} 37. Kf6 {[%clk 0:00:22.1]}
37... Ke8 {[%clk 0:00:25.6]} 38. a4 {[%clk 0:00:22.4]} 38... Kf8 {[%clk
0:00:25.4]} 39. h4 {[%clk 0:00:22.5]} 39... Ke8 {[%clk 0:00:24.5]} 40. e4 {[%clk
0:00:22.9]} 40... Kf8 {[%clk 0:00:24.3]} 41. e5 {[%clk 0:00:23.4]} 41... Kg8
{[%clk 0:00:17.9]} 42. e6 {[%clk 0:00:20.7]} 42... fxe6 {[%clk 0:00:18.2]} 43.
Kxg6 {[%clk 0:00:20.7]} 1-0

[Event "*** Titled Tuesday Blitz"]
[Site "Chess.com"]
[Date "2020.04.07"]
[Round "6"]
[White "csati17"]
[Black "norwaytoadog"]
[Result "1-0"]
[WhiteElo "2468"]
[BlackElo "2279"]
[TimeControl "180+1"]
[EndTime "14:08:11 PDT"]
[Termination "csati17 won by checkmate"]

1. c4 {[%clk 0:03:00.9]} 1... e5 {[%clk 0:02:59.2]} 2. g3 {[%clk 0:03:00.8]}
2... Nf6 {[%clk 0:02:58.8]} 3. Bg2 {[%clk 0:03:01]} 3... Nc6 {[%clk 0:02:58.8]}
4. Nc3 {[%clk 0:03:00.5]} 4... Bb4 {[%clk 0:02:58.7]} 5. Nd5 {[%clk 0:03:00.4]}
5... O-O {[%clk 0:02:57.8]} 6. Nxb4 {[%clk 0:03:00.5]} 6... Nxb4 {[%clk
0:02:57.6]} 7. d3 {[%clk 0:03:01.4]} 7... d5 {[%clk 0:02:57]} 8. cxd5 {[%clk
0:03:00.6]} 8... Nbxd5 {[%clk 0:02:55.8]} 9. Nf3 {[%clk 0:03:01.5]} 9... Re8
{[%clk 0:02:53.4]} 10. O-O {[%clk 0:03:01.1]} 10... c6 {[%clk 0:02:50.3]} 11. b3
{[%clk 0:02:58.9]} 11... e4 {[%clk 0:02:40.8]} 12. dxe4 {[%clk 0:02:57.2]} 12...
Nxe4 {[%clk 0:02:33]} 13. Qc2 {[%clk 0:02:50.4]} 13... a5 {[%clk 0:02:13.7]} 14.
a3 {[%clk 0:02:42.8]} 14... a4 {[%clk 0:02:04.1]} 15. b4 {[%clk 0:02:19.7]}
15... Qf6 {[%clk 0:01:53.9]} 16. Bb2 {[%clk 0:02:17.8]} 16... Qh6 {[%clk
0:01:49.5]} 17. Nh4 {[%clk 0:01:51.3]} 17... f5 {[%clk 0:01:36.9]} 18. b5 {[%clk
0:01:18.2]} 18... Bd7 {[%clk 0:01:28.7]} 19. bxc6 {[%clk 0:01:14.7]} 19... bxc6
{[%clk 0:01:28.5]} 20. Nf3 {[%clk 0:01:09.9]} 20... f4 {[%clk 0:01:23.6]} 21.
Ne5 {[%clk 0:01:09.4]} 21... fxg3 {[%clk 0:01:01.3]} 22. hxg3 {[%clk 0:01:10.3]}
22... Nxg3 {[%clk 0:00:52.8]} 23. Bxd5+ {[%clk 0:00:36.8]} 23... cxd5 {[%clk
0:00:51]} 24. fxg3 {[%clk 0:00:37.5]} 24... Qe3+ {[%clk 0:00:42.6]} 25. Kg2
{[%clk 0:00:37.5]} 25... Rxe5 {[%clk 0:00:38.4]} 26. Bxe5 {[%clk 0:00:37.4]}
26... Qxe5 {[%clk 0:00:27.9]} 27. Rad1 {[%clk 0:00:28.7]} 27... Rc8 {[%clk
0:00:23.2]} 28. Qd3 {[%clk 0:00:21.2]} 28... d4 {[%clk 0:00:16.5]} 29. Rc1
{[%clk 0:00:16.3]} 29... Rc3 {[%clk 0:00:11.3]} 30. Rxc3 {[%clk 0:00:15.2]}
30... dxc3 {[%clk 0:00:08.5]} 31. Qxd7 {[%clk 0:00:13.4]} 31... Qxe2+ {[%clk
0:00:08.5]} 32. Kg1 {[%clk 0:00:12.5]} 32... Qe3+ {[%clk 0:00:08.4]} 33. Rf2
{[%clk 0:00:07.2]} 33... Qe1+ {[%clk 0:00:05.4]} 34. Kg2 {[%clk 0:00:07.6]}
34... Qe4+ {[%clk 0:00:05.3]} 35. Kh3 {[%clk 0:00:05.3]} 35... Qh1+ {[%clk
0:00:04]} 36. Kg4 {[%clk 0:00:05.6]} 36... Qe4+ {[%clk 0:00:03.3]} 37. Rf4
{[%clk 0:00:05.9]} 37... Qe2+ {[%clk 0:00:03]} 38. Kh3 {[%clk 0:00:05.9]} 38...
Qh5+ {[%clk 0:00:02.4]} 39. Kg2 {[%clk 0:00:06.2]} 39... Qe2+ {[%clk 0:00:02.5]}
40. Rf2 {[%clk 0:00:06.7]} 40... Qe4+ {[%clk 0:00:02.8]} 41. Kh2 {[%clk
0:00:07.3]} 41... c2 {[%clk 0:00:01.3]} 42. Qf7+ {[%clk 0:00:07]} 42... Kh8
{[%clk 0:00:01.1]} 43. Qf8# {[%clk 0:00:07.6]} 1-0

[Event "*** Titled Tuesday Blitz"]
[Site "Chess.com"]
[Date "2020.04.07"]
[Round "6"]
[White "VinzentSpitzl"]
[Black "aquiles88"]
[Result "1/2-1/2"]
[WhiteElo "2356"]
[BlackElo "2220"]
[TimeControl "180+1"]
[EndTime "14:08:12 PDT"]
[Termination "Game drawn by repetition"]

1. e4 {[%clk 0:02:59]} 1... c5 {[%clk 0:02:59.1]} 2. Nf3 {[%clk 0:02:59]} 2...
h6 {[%clk 0:02:58.7]} 3. d4 {[%clk 0:02:54.5]} 3... cxd4 {[%clk 0:02:58.3]} 4.
Nxd4 {[%clk 0:02:55.4]} 4... Nf6 {[%clk 0:02:58.5]} 5. Nc3 {[%clk 0:02:54.6]}
5... e5 {[%clk 0:02:58.7]} 6. Nf5 {[%clk 0:02:52.2]} 6... d6 {[%clk 0:02:34.9]}
7. Bb5+ {[%clk 0:02:39.7]} 7... Nc6 {[%clk 0:02:33.1]} 8. O-O {[%clk 0:02:35.5]}
8... Be6 {[%clk 0:02:18.5]} 9. b3 {[%clk 0:02:21.3]} 9... Qd7 {[%clk 0:02:13.9]}
10. Ne3 {[%clk 0:02:03.6]} 10... a6 {[%clk 0:02:11.1]} 11. Bxc6 {[%clk 0:01:52]}
11... bxc6 {[%clk 0:02:09.4]} 12. Qd3 {[%clk 0:01:51]} 12... d5 {[%clk
0:01:56.1]} 13. exd5 {[%clk 0:01:50]} 13... cxd5 {[%clk 0:01:57]} 14. Na4 {[%clk
0:01:46.9]} 14... Qc6 {[%clk 0:01:47.6]} 15. Bb2 {[%clk 0:01:37.8]} 15... Bd6
{[%clk 0:01:46.6]} 16. Rad1 {[%clk 0:01:21.9]} 16... Rd8 {[%clk 0:01:45.8]} 17.
Nf5 {[%clk 0:01:12.2]} 17... Bxf5 {[%clk 0:01:09.6]} 18. Qxf5 {[%clk 0:01:12]}
18... d4 {[%clk 0:01:07]} 19. c3 {[%clk 0:00:54.3]} 19... dxc3 {[%clk
0:00:50.2]} 20. Bxc3 {[%clk 0:00:52.6]} 20... O-O {[%clk 0:00:49.4]} 21. Rfe1
{[%clk 0:00:26.5]} 21... Rfe8 {[%clk 0:00:42.5]} 22. Bb2 {[%clk 0:00:17.8]}
22... Qb5 {[%clk 0:00:38.6]} 23. Qb1 {[%clk 0:00:13.4]} 23... a5 {[%clk
0:00:18.1]} 24. h3 {[%clk 0:00:13.3]} 24... Qc6 {[%clk 0:00:12]} 25. Nc3 {[%clk
0:00:12.7]} 25... Bb4 {[%clk 0:00:10.8]} 26. Rc1 {[%clk 0:00:12.2]} 26... Qd6
{[%clk 0:00:09.6]} 27. Ne4 {[%clk 0:00:10.5]} 27... Nxe4 {[%clk 0:00:09.2]} 28.
Qxe4 {[%clk 0:00:11.4]} 28... Qd3 {[%clk 0:00:08.6]} 29. Qxd3 {[%clk 0:00:10.6]}
29... Rxd3 {[%clk 0:00:09.5]} 30. Bxe5 {[%clk 0:00:10.8]} 30... Rd2 {[%clk
0:00:09.4]} 31. Bg3 {[%clk 0:00:07.5]} 31... Rxe1+ {[%clk 0:00:07.6]} 32. Rxe1
{[%clk 0:00:08.4]} 32... Rxa2 {[%clk 0:00:08.5]} 33. Re3 {[%clk 0:00:08]} 33...
Kh7 {[%clk 0:00:09.1]} 34. Kh2 {[%clk 0:00:08.2]} 34... Bc5 {[%clk 0:00:09.4]}
35. Re5 {[%clk 0:00:07]} 35... Bxf2 {[%clk 0:00:08.7]} 36. Bxf2 {[%clk
0:00:07.3]} 36... Rxf2 {[%clk 0:00:09.1]} 37. Rxa5 {[%clk 0:00:08.2]} 37... Rb2
{[%clk 0:00:09.5]} 38. Rb5 {[%clk 0:00:08.8]} 38... f6 {[%clk 0:00:09.4]} 39.
Rb7 {[%clk 0:00:09.7]} 39... h5 {[%clk 0:00:09.9]} 40. b4 {[%clk 0:00:10.2]}
40... Kg6 {[%clk 0:00:10.3]} 41. h4 {[%clk 0:00:09.9]} 41... Rb3 {[%clk
0:00:10]} 42. g3 {[%clk 0:00:09.6]} 42... Rb2+ {[%clk 0:00:09.8]} 43. Kh3 {[%clk
0:00:10]} 43... Rb3 {[%clk 0:00:10.1]} 44. Kh2 {[%clk 0:00:10.4]} 44... Rb2+
{[%clk 0:00:10.4]} 45. Kh3 {[%clk 0:00:10.8]} 45... Rb3 {[%clk 0:00:11]} 46. Kh2
{[%clk 0:00:11.2]} 1/2-1/2

[Event "*** Titled Tuesday Blitz"]
[Site "Chess.com"]
[Date "2020.04.07"]
[Round "6"]
[White "SahaNeelash"]
[Black "swisspower96"]
[Result "1-0"]
[WhiteElo "2513"]
[BlackElo "2654"]
[TimeControl "180+1"]
[EndTime "14:08:13 PDT"]
[Termination "SahaNeelash won by resignation"]

1. d4 {[%clk 0:03:00.9]} 1... Nf6 {[%clk 0:02:59.1]} 2. Bg5 {[%clk 0:03:00.2]}
2... d5 {[%clk 0:02:52.4]} 3. e3 {[%clk 0:02:59.5]} 3... Nbd7 {[%clk 0:02:46.1]}
4. Nf3 {[%clk 0:02:54.2]} 4... e6 {[%clk 0:02:45.1]} 5. Nbd2 {[%clk 0:02:54.2]}
5... c5 {[%clk 0:02:43.1]} 6. c3 {[%clk 0:02:54]} 6... Be7 {[%clk 0:02:39.9]} 7.
Bd3 {[%clk 0:02:54.3]} 7... O-O {[%clk 0:02:38.1]} 8. Bxf6 {[%clk 0:02:51.4]}
8... Nxf6 {[%clk 0:02:37.6]} 9. Ne5 {[%clk 0:02:51.9]} 9... b5 {[%clk
0:02:29.5]} 10. f4 {[%clk 0:02:34.6]} 10... b4 {[%clk 0:02:29.5]} 11. O-O {[%clk
0:02:24.8]} 11... Bb7 {[%clk 0:02:28.4]} 12. Qb1 {[%clk 0:02:07.6]} 12... Rb8
{[%clk 0:02:19.5]} 13. Rf3 {[%clk 0:02:03.3]} 13... bxc3 {[%clk 0:02:05.5]} 14.
bxc3 {[%clk 0:02:03]} 14... Ba6 {[%clk 0:02:05.8]} 15. Qc2 {[%clk 0:01:56.8]}
15... Bxd3 {[%clk 0:01:54.6]} 16. Nxd3 {[%clk 0:01:56.1]} 16... Ne4 {[%clk
0:01:50.7]} 17. Ne5 {[%clk 0:01:31.8]} 17... Nxd2 {[%clk 0:01:45]} 18. Qxd2
{[%clk 0:01:31]} 18... Qc7 {[%clk 0:01:44.1]} 19. Rh3 {[%clk 0:01:24.2]} 19...
Bd6 {[%clk 0:01:07.2]} 20. Rf1 {[%clk 0:01:19.5]} 20... cxd4 {[%clk 0:01:06.1]}
21. exd4 {[%clk 0:01:11.3]} 21... Rb7 {[%clk 0:00:59]} 22. Qe2 {[%clk
0:01:02.9]} 22... f6 {[%clk 0:00:45]} 23. Qh5 {[%clk 0:00:47.6]} 23... h6 {[%clk
0:00:40.8]} 24. Ng6 {[%clk 0:00:31.7]} 24... Rfb8 {[%clk 0:00:40.5]} 25. Qg4
{[%clk 0:00:28.1]} 25... f5 {[%clk 0:00:36.3]} 26. Qe2 {[%clk 0:00:27.7]} 26...
Qf7 {[%clk 0:00:35.4]} 27. Ne5 {[%clk 0:00:24]} 27... Qf6 {[%clk 0:00:35.5]} 28.
Rg3 {[%clk 0:00:20.5]} 28... Rb2 {[%clk 0:00:35.7]} 29. Qd3 {[%clk 0:00:17.4]}
29... Rxa2 {[%clk 0:00:33.2]} 30. Nd7 {[%clk 0:00:17.1]} 30... Qd8 {[%clk
0:00:23.2]} 31. Nxb8 {[%clk 0:00:17.3]} 31... Qxb8 {[%clk 0:00:24.1]} 32. Rb1
{[%clk 0:00:16.3]} 32... Rb2 {[%clk 0:00:23.4]} 33. Rxb2 {[%clk 0:00:16.5]}
33... Qxb2 {[%clk 0:00:24.3]} 34. Rf3 {[%clk 0:00:16.9]} 34... a5 {[%clk
0:00:21.5]} 35. Rf2 {[%clk 0:00:17.1]} 35... Qc1+ {[%clk 0:00:21.1]} 36. Rf1
{[%clk 0:00:17.3]} 36... Qa3 {[%clk 0:00:20.4]} 37. Qe3 {[%clk 0:00:16.7]} 37...
Kf7 {[%clk 0:00:20.2]} 38. Re1 {[%clk 0:00:16.8]} 38... Kg8 {[%clk 0:00:12.5]}
39. Qxe6+ {[%clk 0:00:16.7]} 39... Kh7 {[%clk 0:00:13.1]} 40. Qxf5+ {[%clk
0:00:16.8]} 40... g6 {[%clk 0:00:13.8]} 41. Qf7+ {[%clk 0:00:16.6]} 1-0

[Event "*** Titled Tuesday Blitz"]
[Site "Chess.com"]
[Date "2020.04.07"]
[Round "6"]
[White "Shivagami"]
[Black "ChristianAlm"]
[Result "1-0"]
[WhiteElo "2180"]
[BlackElo "2382"]
[TimeControl "180+1"]
[EndTime "14:08:14 PDT"]
[Termination "Shivagami won on time"]

1. d4 {[%clk 0:02:57.7]} 1... Nf6 {[%clk 0:02:59.2]} 2. Bf4 {[%clk 0:02:57.2]}
2... d5 {[%clk 0:02:58.4]} 3. e3 {[%clk 0:02:57.3]} 3... g6 {[%clk 0:02:58.8]}
4. Nf3 {[%clk 0:02:55.6]} 4... Bg7 {[%clk 0:02:59]} 5. Be2 {[%clk 0:02:53.5]}
5... O-O {[%clk 0:02:59.3]} 6. O-O {[%clk 0:02:53.5]} 6... c5 {[%clk 0:02:59.6]}
7. c3 {[%clk 0:02:53.7]} 7... Nc6 {[%clk 0:02:56]} 8. Nbd2 {[%clk 0:02:53.3]}
8... cxd4 {[%clk 0:02:52.6]} 9. exd4 {[%clk 0:02:52.9]} 9... Bf5 {[%clk
0:02:52.5]} 10. Ne5 {[%clk 0:02:52.1]} 10... Ne4 {[%clk 0:02:50.3]} 11. Ndf3
{[%clk 0:02:47.7]} 11... f6 {[%clk 0:02:43.3]} 12. Nxc6 {[%clk 0:02:42.7]} 12...
bxc6 {[%clk 0:02:44.2]} 13. Qb3 {[%clk 0:02:35.4]} 13... Qb6 {[%clk 0:02:36.7]}
14. Qa3 {[%clk 0:02:27.3]} 14... Rfe8 {[%clk 0:02:30.5]} 15. c4 {[%clk
0:02:21.4]} 15... e5 {[%clk 0:02:18.2]} 16. dxe5 {[%clk 0:02:17.5]} 16... fxe5
{[%clk 0:02:19.1]} 17. Be3 {[%clk 0:02:03.7]} 17... d4 {[%clk 0:02:12.8]} 18.
Bc1 {[%clk 0:01:44.2]} 18... Bf8 {[%clk 0:01:52.3]} 19. Qa4 {[%clk 0:01:39.8]}
19... Nc5 {[%clk 0:01:49.9]} 20. Qa3 {[%clk 0:01:26.6]} 20... a5 {[%clk
0:01:17.7]} 21. Bd2 {[%clk 0:01:14.8]} 21... Bc2 {[%clk 0:00:54.3]} 22. b4
{[%clk 0:00:59.6]} 22... axb4 {[%clk 0:00:35]} 23. Qxb4 {[%clk 0:00:56.3]} 23...
Qxb4 {[%clk 0:00:29.8]} 24. Bxb4 {[%clk 0:00:57.2]} 24... d3 {[%clk 0:00:27.7]}
25. Bd1 {[%clk 0:00:56.3]} 25... e4 {[%clk 0:00:27.2]} 26. Bxc2 {[%clk
0:00:44.9]} 26... dxc2 {[%clk 0:00:25.4]} 27. Nd4 {[%clk 0:00:34.4]} 27... Nd3
{[%clk 0:00:22.9]} 28. Bxf8 {[%clk 0:00:32.7]} 28... c1=Q {[%clk 0:00:22.9]} 29.
Rfxc1 {[%clk 0:00:23.2]} 29... Nxc1 {[%clk 0:00:21.8]} 30. Bc5 {[%clk
0:00:19.3]} 30... Nd3 {[%clk 0:00:18.4]} 31. Bb6 {[%clk 0:00:16.9]} 31... Rec8
{[%clk 0:00:17.3]} 32. c5 {[%clk 0:00:16.4]} 32... Nb4 {[%clk 0:00:16.8]} 33. a4
{[%clk 0:00:12.7]} 33... Nd5 {[%clk 0:00:15.2]} 34. a5 {[%clk 0:00:13]} 34...
Ra6 {[%clk 0:00:14.8]} 35. Rb1 {[%clk 0:00:11.7]} 35... Nxb6 {[%clk 0:00:12.7]}
36. axb6 {[%clk 0:00:10.8]} 36... Kf8 {[%clk 0:00:06.7]} 37. Nxc6 {[%clk
0:00:10.5]} 37... Ra5 {[%clk 0:00:03.5]} 38. Nxa5 {[%clk 0:00:10.3]} 38... Rxc5
{[%clk 0:00:03.3]} 39. b7 {[%clk 0:00:10.1]} 39... Rb5 {[%clk 0:00:03.7]} 40.
Rxb5 {[%clk 0:00:08.7]} 1-0

[Event "*** Titled Tuesday Blitz"]
[Site "Chess.com"]
[Date "2020.04.07"]
[Round "6"]
[White "levallem"]
[Black "Caclox"]
[Result "1-0"]
[WhiteElo "2127"]
[BlackElo "2480"]
[TimeControl "180+1"]
[EndTime "14:08:15 PDT"]
[Termination "levallem won by resignation"]

1. d4 {[%clk 0:03:00.9]} 1... Nf6 {[%clk 0:02:59.5]} 2. c4 {[%clk 0:03:00.5]}
2... c5 {[%clk 0:02:59.9]} 3. dxc5 {[%clk 0:02:57.9]} 3... Na6 {[%clk
0:02:58.5]} 4. e3 {[%clk 0:02:57.2]} 4... Nxc5 {[%clk 0:02:58.3]} 5. Nf3 {[%clk
0:02:56.8]} 5... e6 {[%clk 0:02:56.8]} 6. Nc3 {[%clk 0:02:57.2]} 6... a6 {[%clk
0:02:55.5]} 7. b3 {[%clk 0:02:55.8]} 7... Be7 {[%clk 0:02:53.1]} 8. Bb2 {[%clk
0:02:55.8]} 8... O-O {[%clk 0:02:52.9]} 9. Be2 {[%clk 0:02:55.7]} 9... d5 {[%clk
0:02:52.7]} 10. O-O {[%clk 0:02:54.6]} 10... b6 {[%clk 0:02:45.5]} 11. cxd5
{[%clk 0:02:54.8]} 11... exd5 {[%clk 0:02:46.3]} 12. Qd4 {[%clk 0:02:43.2]}
12... Re8 {[%clk 0:02:43.3]} 13. Rfd1 {[%clk 0:02:42.3]} 13... Bb7 {[%clk
0:02:43]} 14. Rac1 {[%clk 0:02:34.5]} 14... Rc8 {[%clk 0:02:41.1]} 15. Ne5
{[%clk 0:01:50.7]} 15... Bd6 {[%clk 0:02:29.8]} 16. Nd3 {[%clk 0:01:44.7]} 16...
Ne6 {[%clk 0:02:25.7]} 17. Qh4 {[%clk 0:01:43.6]} 17... d4 {[%clk 0:02:18.7]}
18. exd4 {[%clk 0:01:35.5]} 18... Nxd4 {[%clk 0:02:17.7]} 19. Bf1 {[%clk
0:01:21.8]} 19... Nf5 {[%clk 0:02:16.6]} 20. Qg5 {[%clk 0:01:15.1]} 20... Qd7
{[%clk 0:02:08]} 21. Ne1 {[%clk 0:00:55.9]} 21... h6 {[%clk 0:02:05.6]} 22. Qd2
{[%clk 0:00:55.3]} 22... Qe7 {[%clk 0:01:30.2]} 23. Na4 {[%clk 0:00:51.8]} 23...
Ne4 {[%clk 0:00:46.2]} 24. Qd3 {[%clk 0:00:38.1]} 24... Qh4 {[%clk 0:00:40.4]}
25. g3 {[%clk 0:00:35.8]} 25... Qe7 {[%clk 0:00:21.9]} 26. Rxc8 {[%clk
0:00:34.8]} 26... Rxc8 {[%clk 0:00:20]} 27. Nxb6 {[%clk 0:00:33.2]} 27... Re8
{[%clk 0:00:19.9]} 28. Nd5 {[%clk 0:00:31.8]} 28... Bxd5 {[%clk 0:00:19.4]} 29.
Qxd5 {[%clk 0:00:31.8]} 29... Bc5 {[%clk 0:00:19.6]} 30. Nd3 {[%clk 0:00:31.7]}
30... Bxf2+ {[%clk 0:00:13.1]} 31. Nxf2 {[%clk 0:00:28.2]} 31... Nxf2 {[%clk
0:00:13.4]} 32. Kxf2 {[%clk 0:00:25.5]} 32... Ne3 {[%clk 0:00:13.9]} 33. Qd2
{[%clk 0:00:20.6]} 33... Nxd1+ {[%clk 0:00:13.9]} 34. Qxd1 {[%clk 0:00:20.8]}
34... Qe3+ {[%clk 0:00:14.1]} 35. Kg2 {[%clk 0:00:21]} 35... Qe4+ {[%clk
0:00:14.4]} 36. Qf3 {[%clk 0:00:19.8]} 36... Qc2+ {[%clk 0:00:14.3]} 37. Qf2
{[%clk 0:00:20.1]} 37... Qe4+ {[%clk 0:00:14.4]} 38. Kg1 {[%clk 0:00:19.7]}
38... Rd8 {[%clk 0:00:13.4]} 39. Bc3 {[%clk 0:00:11.6]} 39... Rc8 {[%clk
0:00:10.7]} 40. Qd4 {[%clk 0:00:09.7]} 40... Qg6 {[%clk 0:00:07.4]} 41. Bd3
{[%clk 0:00:08.5]} 41... Qg5 {[%clk 0:00:07]} 42. Qe5 {[%clk 0:00:06.8]} 42...
Qc1+ {[%clk 0:00:06.5]} 43. Be1 {[%clk 0:00:05.8]} 43... Qc3 {[%clk 0:00:07.4]}
44. Bxc3 {[%clk 0:00:05.3]} 1-0

[Event "*** Titled Tuesday Blitz"]
[Site "Chess.com"]
[Date "2020.04.07"]
[Round "6"]
[White "FMAntonio"]
[Black "GMNeiksans"]
[Result "0-1"]
[WhiteElo "2550"]
[BlackElo "2834"]
[TimeControl "180+1"]
[EndTime "14:08:16 PDT"]
[Termination "GMNeiksans won on time"]

1. d4 {[%clk 0:02:59.6]} 1... Nf6 {[%clk 0:02:59.6]} 2. c4 {[%clk 0:02:59.3]}
2... b6 {[%clk 0:03:00]} 3. Nc3 {[%clk 0:02:58]} 3... Bb7 {[%clk 0:02:59.9]} 4.
a3 {[%clk 0:02:56.5]} 4... g6 {[%clk 0:02:54.6]} 5. f3 {[%clk 0:02:54.3]} 5...
Nc6 {[%clk 0:02:37.2]} 6. d5 {[%clk 0:02:39]} 6... Ne5 {[%clk 0:02:37.4]} 7. e4
{[%clk 0:02:38.6]} 7... d6 {[%clk 0:02:37.5]} 8. f4 {[%clk 0:02:38.1]} 8... Ned7
{[%clk 0:02:36.7]} 9. Nf3 {[%clk 0:02:38.2]} 9... Bg7 {[%clk 0:02:36.2]} 10. Bd3
{[%clk 0:02:33.1]} 10... O-O {[%clk 0:02:35.5]} 11. O-O {[%clk 0:02:32.1]} 11...
c6 {[%clk 0:02:35.2]} 12. Kh1 {[%clk 0:02:27]} 12... cxd5 {[%clk 0:02:34.8]} 13.
cxd5 {[%clk 0:02:26.3]} 13... Nc5 {[%clk 0:02:32.2]} 14. Bc2 {[%clk 0:02:26.2]}
14... Ba6 {[%clk 0:02:32.4]} 15. Re1 {[%clk 0:02:21.8]} 15... e6 {[%clk
0:02:31.9]} 16. b4 {[%clk 0:02:21.1]} 16... Ncxe4 {[%clk 0:02:15.9]} 17. Nxe4
{[%clk 0:02:15.4]} 17... Nxe4 {[%clk 0:02:15.8]} 18. Bxe4 {[%clk 0:02:08.6]}
18... Bxa1 {[%clk 0:02:15.6]} 19. dxe6 {[%clk 0:02:08.3]} 19... fxe6 {[%clk
0:02:00.2]} 20. Bxa8 {[%clk 0:02:06.2]} 20... Qxa8 {[%clk 0:01:59.4]} 21. Rxe6
{[%clk 0:02:03.8]} 21... Bc4 {[%clk 0:01:44.2]} 22. Rxd6 {[%clk 0:01:59.4]}
22... Qe4 {[%clk 0:01:44]} 23. Ng5 {[%clk 0:01:50.5]} 23... Qb1 {[%clk
0:01:30.6]} 24. h4 {[%clk 0:01:22.9]} 24... Bf6 {[%clk 0:01:17.3]} 25. Nf3
{[%clk 0:01:02]} 25... Qf5 {[%clk 0:01:08.9]} 26. Be3 {[%clk 0:00:59.1]} 26...
b5 {[%clk 0:01:03]} 27. Rd7 {[%clk 0:00:48.3]} 27... Qg4 {[%clk 0:00:56.7]} 28.
Qd6 {[%clk 0:00:28.8]} 28... Bxh4 {[%clk 0:00:50.9]} 29. Ne5 {[%clk 0:00:21.5]}
29... Qf5 {[%clk 0:00:41.7]} 30. Qc7 {[%clk 0:00:18.1]} 30... Bf7 {[%clk
0:00:28]} 31. Rxf7 {[%clk 0:00:06.4]} 31... Rxf7 {[%clk 0:00:27.7]} 32. Nxf7
{[%clk 0:00:05.8]} 32... Qxf7 {[%clk 0:00:27.9]} 33. Qxf7+ {[%clk 0:00:04.7]}
33... Kxf7 {[%clk 0:00:28.1]} 34. Bxa7 {[%clk 0:00:04.6]} 34... Ke6 {[%clk
0:00:27.8]} 35. Kh2 {[%clk 0:00:02.2]} 35... Kd5 {[%clk 0:00:27.9]} 36. g3
{[%clk 0:00:02.2]} 36... Bf6 {[%clk 0:00:27.7]} 37. Bc5 {[%clk 0:00:02]} 37...
Bb2 {[%clk 0:00:27.4]} 38. Kh3 {[%clk 0:00:01.8]} 38... Kc4 {[%clk 0:00:22.4]}
39. g4 {[%clk 0:00:02.2]} 39... Bxa3 {[%clk 0:00:22.6]} 40. f5 {[%clk
0:00:02.6]} 40... gxf5 {[%clk 0:00:20.8]} 41. gxf5 {[%clk 0:00:03]} 41... Kd5
{[%clk 0:00:20.8]} 42. Kg4 {[%clk 0:00:03.3]} 42... Bc1 {[%clk 0:00:19.7]} 43.
Kh5 {[%clk 0:00:01.7]} 43... Ke5 {[%clk 0:00:19]} 44. Kg4 {[%clk 0:00:01.9]}
44... Bd2 {[%clk 0:00:18.2]} 45. Be7 {[%clk 0:00:01.6]} 45... h5+ {[%clk
0:00:17.2]} 46. Kxh5 {[%clk 0:00:01.5]} 46... Kxf5 {[%clk 0:00:17.8]} 47. Bf8
{[%clk 0:00:01.5]} 47... Ke4 {[%clk 0:00:18.2]} 48. Kg6 {[%clk 0:00:01.8]} 48...
Kd5 {[%clk 0:00:18.3]} 49. Kf5 {[%clk 0:00:01.7]} 49... Kc4 {[%clk 0:00:18.9]}
50. Ke6 {[%clk 0:00:01.6]} 50... Bc3 {[%clk 0:00:18.6]} 51. Be7 {[%clk
0:00:01.1]} 51... Bxb4 {[%clk 0:00:18.9]} 0-1